{"text_format":"1","workbook":"xlsx","n_sheets":1,"sheets":["SNPs"],"not_rendered":{"charts":0,"images":0,"macros":0,"external_links":0,"defined_names":0,"comments":0,"pivot_tables":0},"unopened":[],"bounds":{"document_bytes":16777216,"sheet_cells":100000,"rows_first":2000,"rows_last":500,"rows_between":2000,"halvings":0,"cell_chars":16384,"cell_head_chars":4096},"cells_cut":0,"cells_raw":0,"read":"whole","date_system":"1900"}

{"sheet":"SNPs","index":0,"n_rows":29,"n_cols":12,"rows_kept":29,"cut":false,"hidden":false,"merged":[[4,10,5,10],[4,11,5,11]]}
["SNP Category",null,null,null,null,null,null,"Designed and/or mainly analyzed by","Final number","Final number with duplicates","Final number on the chip (checked on 2020/07/29)","The name of the marker contains"]
[]
["SNPs with different MAF profiles",null,null,null,null,null,null,"Badr Benjelloun,  Rachel Rupp,  Curt Van Tassell",1487,{"$f":"I3","v":1487},1393,"Random"]
["SNPs chosen in breeds not represented in the discovery dataset",null,null,null,null,null,null,"Gwenola Tosser,  Curt Van Tassell",992,{"$f":"I4","v":992},945,"AF-PAKI"]
["SNPs to be able to join with GBS data + fill remaining gaps (determined after mapping the SNPs on ARS1 assembly)",null,null,null,null,null,null,"Rudiger Brauning,  Shannon Clarke, Ken Dodds",858,{"$f":"I5","v":858},1938,"GOATD01"]
["GBS markers from AgResearch",null,null,null,null,null,null,"Rudiger Brauning,  Shannon Clarke, Ken Dodds",612,{"$f":"I6*2","v":1224}]
["mitochondrial markers",null,null,null,null,null,null,"Licia Colli, Paola Crepaldi, Barbara Lazzari, Alessandra Stella",183,{"$f":"I7*2","v":366},331,"mtdna"]
["SNPs in specific regions/genes"]
[null,"PRP",null,null,null,null,null,"Marcel Amills, Philippe Bardou, Rudiger Brauning, Cord Drögmüller, Isabelle Palhière, Alessandra Stella, Gwenola Tosser, Stephen White",{"$f":"25-9+144","v":160},{"$f":"I9*2","v":320},272,"PRP"]
[null,"Caseins-Lucie",null,null,null,null,null,"Lucie Genestout",19,38,34,"CSN1S1 (but not snp)"]
[null,"Caseins (QTL)",null,null,null,null,null,"Estelle Talouarn",20,40,39,"QTLcaseins"]
[null,"DGAT1",null,null,null,null,null,"Gwenola Tosser",2,4,4,"DGAT1"]
[null,"UniBern (wattles, caseins, PRNP, DGAT1)",null,null,null,null,null,"Cord Drögmüller",29,58,60,"UniBern"]
[null,"miRNA",null,null,null,null,null,"Céline Bourdon",34,68,60,"miRNA"]
[null,"PIS",null,null,null,null,null,"Aurelien Capitan",2,4,4,"PIS"]
[null,"PITX2",null,null,null,null,null,"Cord Drögmüller",3,6,0]
[null,"QTLs (without caseins)",null,null,null,null,null,"Estelle Talouarn",185,370,{"$f":"384-39","v":345},"QTL (but not QTLcaseins)"]
[null,"High and low recombination areas",null,null,null,null,null,"Rachel Rupp",414,{"$f":"I18","v":414},386,"RH-map"]
["Y markers",null,null,null,null,null,null,null,null,{"$f":"I19","v":0}]
[null,"already selected by Hans Lenstra",null,null,null,null,null,"Hans Lenstra",35,{"$f":"I20*2","v":70},67,"chr-Y-toconfirm"]
[null,"evenly spaced on Y contigs",null,null,null,null,null,"Ben Rosen",74,{"$f":"I21*2","v":148},134,"NW_017189618.1_ or NW_017189685.1_ or NW_017189696.1_ or NW_017189885.1_ or NW_017189985.1_ or NW_017190154.1_ or NW_017190040.1_ or NW_017189628.1_ or NW_017189610.1_ or NW_017195709.1_ or NW_017189563.1_ "]
[]
["Total AddOn IGGC",null,null,null,null,null,null,null,{"$f":"SUM(I2:I21)","v":5109},{"$f":"SUM(J2:J21)","v":6467},{"$f":"SUM(K2:K21)","v":6012}]
[]
["Punlic (rs…)",null,null,null,null,null,null,"Illumina",null,30,29,"ch-rs"]
["Illumina",null,null,null,null,null,null,"Illumina",null,339,339,"ilmnseq"]
["v1",null,null,null,null,null,null,"Philippe Bardou, Isabelle Palhière",null,53347,53347,"snp"]
[]
["Total-v2",null,null,null,null,null,null,null,null,null,{"$f":"K23+K25+K26+K27","v":59727}]